fUST/lending_fUST_20260122
["ID","MTS","AMOUNT","RATE_DAILY","PERIOD"]
[403026707,1769081969931,150.0,0.00015141,2]
[403026708,1769081970349,150.0,0.00015862,2]
[403026709,1769081970742,150.0,0.00016583,2]
[403026710,1769081971178,169.45,0.00017304,2]
[403026711,1769081985060,5000.0,0.00017792,2]
[403026712,1769082000686,2378.02,0.00017792,2]
[403026713,1769082000707,2621.98,0.00017792,2]
[403026714,1769082008463,4638.66918333,0.00017792,2]
[403026716,1769082023678,2739.36081667,0.00017792,2]
[403026717,1769082023961,2260.63918333,0.00017792,2]
[403026718,1769082044390,150.0,0.00015294,2]
[403026719,1769082044556,150.0,0.00016023,2]
[403026720,1769082044959,150.0,0.00016751,2]
[403026721,1769082045367,150.0,0.00017479,2]
[403026722,1769082047135,5000.0,0.00017792,2]
[403026723,1769082069309,2139.37081667,0.00017792,2]
[403026724,1769082069331,2860.62918333,0.00017792,2]
[403026726,1769082093183,5000.0,0.00017792,2]
[403026727,1769082116071,5000.0,0.00017973,2]
[403026728,1769082116741,150.0,0.00015531,2]
[403026729,1769082117155,150.0,0.00016271,2]
[403026730,1769082117550,150.0,0.0001701,2]
[403026731,1769082117977,150.0,0.0001775,2]
[403026732,1769082127712,251.04675488,0.00017808,2]
[403026733,1769082138911,4148.96324512,0.00017973,2]
[403026734,1769082138933,851.03675488,0.00017973,2]
[403026735,1769082161730,5000.0,0.00017973,2]
[403026740,1769082185596,4148.97324512,0.00017973,2]
[403026741,1769082185618,851.02675488,0.00017973,2]
[403026742,1769082188521,150.0,0.00015439,2]
[403026743,1769082188978,150.0,0.00016174,2]
[403026744,1769082189525,150.0,0.00016909,2]
[403026745,1769082189920,150.0,0.00017644,2]
[403026750,1769082208312,5000.0,0.00017973,2]
[403026751,1769082232048,3548.98324512,0.00017973,2]
[403026752,1769082232071,1451.01675488,0.00017973,2]
[403026753,1769082234416,250.0,0.00017348,2]
[403026754,1769082254205,5000.0,0.00017973,2]
[403026755,1769082257291,150.0,0.0001546,2]
[403026756,1769082257688,150.0,0.00016196,2]
[403026757,1769082258348,150.0,0.00016932,2]
[403026758,1769082258541,150.0,0.00017668,2]
[403026759,1769082277780,2698.99324512,0.00017973,2]
[403026760,1769082277802,2301.00675488,0.00017973,2]
[403026761,1769082300633,5000.0,0.00017973,2]
[403026762,1769082323546,2699.00324512,0.00017973,2]
[403026763,1769082323570,2300.99675488,0.00017973,2]
[403026764,1769082326839,150.0,0.00015443,2]
[403026765,1769082327251,150.0,0.00016179,2]
[403026766,1769082327688,150.0,0.00016914,2]
[403026767,1769082328052,150.0,0.00017649,2]
[403026768,1769082347490,5000.0,0.00017973,2]
[403026769,1769082392352,150.0,0.00015444,2]
[403026770,1769082392760,224.65,0.0001618,2]
[403026771,1769082393164,336.98,0.00016915,2]
[403026772,1769082393643,449.3,0.0001765,2]
[403026778,1769082402821,301.20241097,0.00017498,2]
[403026779,1769082405485,542.16433974,0.00017498,2]
[403026780,1769082407986,94.71649441,0.00017498,2]
[403026781,1769082408010,869.13122068,0.00017498,2]
[403026782,1769082462027,9130.87877932,0.00017973,2]
[403026783,1769082462297,869.12122068,0.00017973,2]
[403026784,1769082465202,-172.4593827,0.00017973,2]
[403026785,1769082471062,150.0,0.00015446,2]
[403026786,1769082471447,272.45,0.00016181,2]
[403026787,1769082471869,408.68,0.00016917,2]
[403026788,1769082472296,544.91,0.00017652,2]
[403026789,1769082480906,2201.1,0.00017973,2]
[403026790,1769082499017,3038.65284801,0.00017973,2]
[403026791,1769082521850,1961.34715199,0.00017973,2]
[403026792,1769082553827,268.45,0.00015446,2]
[403026793,1769082554535,536.89,0.00016181,2]
[403026794,1769082554681,272.6112346,0.00016917,2]
[403026795,1769082554706,532.7287654,0.00016917,2]
[403026796,1769082555077,1073.79,0.00017652,2]
[403026797,1769082566238,5000.0,0.00017973,2]
[403026827,1769082632257,-150.0,0.00017973,2]
[403026829,1769082632267,-300.0,0.00018777,2]
[403026830,1769082632277,-300.0,0.00018777,2]
[403026832,1769082632285,-300.0,0.00018777,2]
[403026834,1769082632294,-385.27231834,0.00018777,2]
[403026837,1769082632309,-814.72768166,0.00018777,2]
[403026840,1769082632319,-500.0,0.00018777,2]
[403026842,1769082632328,-465.3251252,0.00018777,2]
[403026844,1769082632336,-500.0,0.00018777,2]
[403026846,1769082632345,-500.0,0.00018777,2]
[403026848,1769082632354,-277.13120104,0.00018777,2]
[403026850,1769082632364,-500.0,0.00018777,2]
[403026852,1769082632373,-500.0,0.00018777,2]
[403026854,1769082632383,-500.0,0.00018777,2]
[403026856,1769082632393,-500.0,0.00018777,2]
[403026859,1769082632403,-410.87139264,0.00018777,2]
[403026862,1769082632412,-200.73664882,0.00018777,2]
[403026907,1769082633533,234.28,0.00015449,2]
[403026908,1769082633962,468.56,0.00016185,2]
[403026909,1769082634373,702.84,0.0001692,2]
[403026910,1769082634758,937.12,0.00017656,2]
[403026944,1769082638372,-1171.4,0.00018392,2]
[403026946,1769082638382,-299.26335118,0.00018777,2]
[403026948,1769082638391,-83.64715272,0.00018777,2]
[403027082,1769082640640,-416.35284728,0.00018777,2]
[403027083,1769082640649,-500.0,0.00018777,2]
[403027084,1769082640658,-500.0,0.00018777,2]
[403027085,1769082640667,-578.38591291,0.00018777,2]
[403027086,1769082640676,-500.0,0.00018777,2]
[403027087,1769082640684,-500.0,0.00018777,2]
[403027088,1769082640693,-500.0,0.00018777,2]
[403027089,1769082640702,-500.0,0.00018777,2]
[403027090,1769082640711,-373.82808136,0.00018777,2]
[403027091,1769082640720,-500.0,0.00018777,2]
[403027092,1769082640729,-44178.16309716,0.00018778,2]
[403027093,1769082640738,-1000.0,0.00018779,2]
[403027094,1769082640747,-1000.0,0.00018779,2]
[403027095,1769082640756,-1729.39141732,0.00018779,2]
[403027096,1769082640764,-1000.0,0.00018779,2]
[403027097,1769082640773,-1000.0,0.00018779,2]
[403027098,1769082640782,-1000.0,0.00018779,2]
[403027099,1769082640791,-1000.0,0.00018779,2]
[403027100,1769082640799,-1000.0,0.00018779,2]
[403027101,1769082640808,-169.92442553,0.00018779,2]
[403027102,1769082640817,-229.89543161,0.0001879,2]
[403027103,1769082640825,-185.57636671,0.0001879,2]
[403027104,1769082640834,-160.92680212,0.0001879,2]
[403027105,1769082640843,-164.29551191,0.0001879,2]
[403027106,1769082640854,-235.198,0.0001879,2]
[403027107,1769082640864,-1153.64523132,0.00018791,2]
[403027119,1769082643610,-2260.12678844,0.00018791,2]
[403027120,1769082643662,-621.0,0.00018791,2]
[403027125,1769082646426,-1729.16311281,0.00018791,2]
[403027131,1769082711304,189.55,0.00015446,2]
[403027132,1769082711728,379.11,0.00016181,2]
[403027133,1769082712313,568.66,0.00016917,2]
[403027134,1769082712529,758.22,0.00017652,2]
[403027137,1769082801007,165.43,0.00015283,2]
[403027138,1769082801398,330.86,0.00016011,2]
[403027139,1769082801831,496.29,0.00016739,2]
[403027140,1769082802756,661.72,0.00017466,2]
[403027141,1769082882369,150.0,0.00015289,2]
[403027142,1769082882795,288.75,0.00016017,2]
[403027143,1769082883211,433.12,0.00016745,2]
[403027144,1769082883610,577.5,0.00017473,2]
[403027145,1769082961860,150.0,0.00014984,2]
[403027146,1769082962269,251.86,0.00015698,2]
[403027147,1769082962688,377.79,0.00016412,2]
[403027148,1769082963131,503.71,0.00017125,2]
[403027149,1769082963543,629.64,0.00017839,2]
[403027150,1769083011576,-886.86423522,0.00018314,7]
[403027151,1769083011612,-150.0,0.00018495,2]
[403027152,1769083011644,-755.57,0.00018552,2]
[403027153,1769083011671,-498.65838425,0.0001869,2]
[403027154,1769083011700,-530.79235567,0.0001869,2]
[403027155,1769083011731,-500.0,0.0001869,2]
[403027156,1769083011760,-230.9317681,0.0001869,2]
[403027157,1769083011788,-263.75867571,0.0001869,2]
[403027158,1769083011815,-300.0,0.0001869,2]
[403027159,1769083019541,500.0,0.0001869,2]
[403027160,1769083019689,500.0,0.0001869,2]
[403027161,1769083022565,300.0,0.0001869,2]
[403027162,1769083023997,466.8591621,0.0001869,2]
[403027163,1769083024018,33.1408379,0.0001869,2]
[403027164,1769083024044,500.0,0.0001869,2]
[403027165,1769083038735,500.0,0.0001869,2]
[403027166,1769083039794,150.0,0.00014995,2]
[403027167,1769083040229,184.9,0.00015709,2]
[403027168,1769083040680,277.34,0.00016423,2]
[403027169,1769083041088,369.79,0.00017137,2]
[403027170,1769083042028,462.24,0.00017851,2]
[403027171,1769083042449,554.69,0.00018566,2]
[403027172,1769083075334,500.0,0.0001869,2]
[403027173,1769083080839,500.0,0.0001869,2]
[403027174,1769083080869,314.70637469,0.0001869,2]
[403027175,1769083080894,500.0,0.0001869,2]
[403027176,1769083080921,500.0,0.0001869,2]
[403027177,1769083082956,300.0,0.0001869,2]
[403027178,1769083091131,203.91429825,0.0001869,2]
[403027179,1769083091157,500.0,0.0001869,2]
[403027180,1769083091186,500.0,0.0001869,2]
[403027181,1769083097140,500.0,0.0001869,2]
[403027182,1769083097204,500.0,0.0001869,2]
[403027183,1769083105534,500.0,0.0001869,2]
[403027184,1769083105588,394.68438882,0.0001869,2]
[403027185,1769083114950,226.36381982,0.0001869,2]
[403027186,1769083115635,150.0,0.00014991,2]
[403027187,1769083116084,179.71,0.00015705,2]
[403027188,1769083116533,269.56,0.00016418,2]
[403027189,1769083117427,359.42,0.00017132,2]
[403027190,1769083117457,69.55028052,0.00017846,2]
[403027191,1769083117480,379.71971948,0.00017846,2]
[403027192,1769083117737,539.12,0.0001856,2]
[403027193,1769083118886,552.04478586,0.0001869,2]
[403027194,1769083190626,150.0,0.00015537,2]
[403027195,1769083191023,150.0,0.00016277,2]
[403027196,1769083191720,195.22,0.00017017,2]
[403027197,1769083191841,260.29,0.00017757,2]
[403027198,1769083266072,150.0,0.00015295,2]
[403027199,1769083266497,150.0,0.00016023,2]
[403027200,1769083266918,166.37,0.00016752,2]
[403027201,1769083267309,221.83,0.0001748,2]
[403027202,1769083269439,-277.29,0.00018208,2]
[403027203,1769083269467,-695.0,0.00018497,2]
[403027204,1769083269496,-150.0,0.00018593,2]
[403027205,1769083298685,-107.01128845,0.00018689,2]
[403027207,1769083338603,150.0,0.00015294,2]
[403027208,1769083338856,150.0,0.00016023,2]
[403027209,1769083339278,150.0,0.00016751,2]
[403027210,1769083339690,172.68,0.00017479,2]
[403027211,1769083410815,150.0,0.00015288,2]
[403027212,1769083411241,150.0,0.00016016,2]
[403027213,1769083411632,150.0,0.00016744,2]
[403027214,1769083412041,150.0,0.00017472,2]
[403027215,1769083484203,150.0,0.00014998,2]
[403027216,1769083484600,150.0,0.00015712,2]
[403027217,1769083485013,150.0,0.00016426,2]
[403027218,1769083485555,150.0,0.00017141,2]
[403027219,1769083486048,150.0,0.00017855,2]
[403027221,1769083545913,8027.33,0.00017715,2]
[403027222,1769083545934,7046.6464111,0.00017715,2]
[403027224,1769083556653,150.0,0.00015687,2]
[403027225,1769083556785,150.0,0.00017113,2]
[403027227,1769083628757,-150.0,0.00015691,2]
[403027229,1769083683372,230.14,3.996e-05,2]
[403027230,1769083695701,150.0,0.00015701,2]
[403027231,1769083763007,150.0,0.00015704,2]
[403027232,1769083829628,150.0,0.00015707,2]
[403027794,1769083843770,-150.0,0.00017118,2]
[403027795,1769083843779,-151.03584313,0.00017118,2]
[403027814,1769083846584,-519.96415687,0.00017118,2]
[403027815,1769083846594,-695.04851432,0.00018,2]
[403027821,1769083895148,150.0,0.00015659,2]
[403027822,1769083959899,150.0,0.00015652,2]
[403027826,1769084025667,150.0,0.00015825,2]
[403027827,1769084092342,150.0,0.00015825,2]
[403027828,1769084157117,150.0,0.00015827,2]
[403027829,1769084158811,-150.0,0.00017264,2]
[403027830,1769084158832,-151.0,0.00017935,2]
[403027831,1769084158852,-156.587,0.00017935,2]
[403027832,1769084158873,-152.79950989,0.00017935,2]
[403027833,1769084158894,-389.61349011,0.00018,2]
[403027834,1769084160204,-1000.0,0.00018,2]
[403027835,1769084160556,-1000.0,0.00018,2]
[403027836,1769084160923,-1000.0,0.00018,2]
[403027837,1769084161298,-1000.0,0.00018,2]
[403027838,1769084161677,-611.09949909,0.00018,2]
[403027839,1769084161701,-150.0,0.00018034,2]
[403027840,1769084221134,150.0,0.0001583,2]
[403027841,1769084291584,150.0,0.00015835,2]
[403027842,1769084361898,150.0,0.00015673,2]
[403027843,1769084396343,4000.0,0.00017083,2]
[403027845,1769084433220,150.0,0.00015677,2]
[403027849,1769084450841,-150.0,0.00017098,2]
[403027850,1769084450861,-670.0,0.00017098,2]
[403027851,1769084450880,-172.7795159,0.00017557,2]
[403027860,1769084503324,150.0,0.00015832,2]
[403027861,1769084571790,150.0,0.00015811,2]
[403027862,1769084638626,150.0,0.0001581,2]
[403027863,1769084641034,-150.0,0.00017272,2]
[403027864,1769084641056,-700.0,0.00018003,2]
[403027865,1769084641076,-150.0,0.00018094,2]
[403027876,1769084702872,150.0,0.0001583,2]
[403027882,1769084718394,-150.0,0.00017269,2]
[403027883,1769084718414,-350.0,0.00018003,2]
[403027901,1769084768730,150.0,0.00015839,2]
[403027921,1769084834250,150.0,0.00015821,2]
[403027930,1769084863299,950.0,0.00017083,2]
[403027938,1769084898841,150.0,0.0001583,2]
[403027941,1769084907447,-150.0,0.00017279,2]
[403027942,1769084907467,-150.0,0.0001761,2]
[403027943,1769084907487,-300.0,0.0001794,2]
[403027944,1769084907507,-300.0,0.0001794,2]
[403027945,1769084907527,-100.0,0.00017941,2]
[403027950,1769084919436,-555.6476829,0.00017941,2]
[403027951,1769084919455,-444.3523171,0.00017941,2]
[403027955,1769084925886,-735.81351213,0.00017941,2]
[403027956,1769084925906,-264.18648787,0.00017941,2]
[403027959,1769084933663,-1000.0,0.00017761,2]
[403027980,1769084978990,-1000.0,0.00017761,2]
[403027987,1769084989820,-763.01643684,0.00017761,2]
[403027988,1769084989840,-236.98356316,0.00017941,2]
[403027989,1769084991240,-1000.0,0.00017941,2]
[403027991,1769084993239,-594.80446168,0.00017941,2]
[403028019,1769084995999,405.19553832,0.00017761,2]
[403028020,1769084998668,-1000.0,0.00017761,2]
[403028022,1769084999875,-294.80446168,0.00017761,2]
[403028050,1769085031620,-3000.0,0.00018117,2]
[403028051,1769085031629,-13140.006718,0.0001825,2]
[403028052,1769085031639,-1000.0,0.000183,2]
[403028053,1769085031648,-634.30298102,0.00018314,7]
[403028054,1769085031658,-158.42881624,0.00018479,2]
[403028055,1769085031667,-158.42881623,0.00018481,2]
[403028056,1769085031676,-158.42881623,0.00018483,2]
[403028057,1769085031685,-300.0,0.00018485,2]
[403028058,1769085031695,-300.0,0.00018485,2]
[403028059,1769085031704,-300.0,0.00018485,2]
[403028060,1769085031714,-300.0,0.00018485,2]
[403028061,1769085031723,-1200.0,0.00018485,2]
[403028062,1769085031735,-158.42881623,0.00018485,2]
[403028063,1769085031744,-123551.28565114,0.00018486,2]
[403028074,1769085037800,-2016.34936963,0.00018486,2]
[403028075,1769085037812,-4035.33248211,0.00018486,2]
[403028076,1769085037823,-3119.86902795,0.00018486,2]
[403028077,1769085037834,-22116.47169657,0.00018486,2]
[403028078,1769085037855,-500.0,0.00018486,2]
[403028272,1769085039900,-9002.34440588,0.00018486,2]
[403028312,1769085040250,-407.57051904,0.00018486,2]
[403028341,1769085042843,-24698.48440651,0.00018486,2]
[403028342,1769085043005,-550.49864065,0.00018486,2]
[403028352,1769085045783,-510.79943543,0.00018485,2]
[403028353,1769085045793,-1271.23182113,0.00018486,2]
[403028354,1769085046790,-23411.49718051,0.00018486,2]
[403028358,1769085100705,436.38118485,0.00012212,2]
[403028527,1769085484303,268.19,4.995e-05,2]
[403028554,1769085546895,10000.01,0.00016322,2]
[403028555,1769085546917,10000.01,0.00016322,2]
[403028556,1769085546938,10000.01,0.00016322,2]
[403028557,1769085546960,10000.01,0.00016322,2]
[403028558,1769085546980,994.02454903,0.00016322,2]
[403028569,1769085575754,-300.0,0.00017051,2]
[403028575,1769085591178,-5000.0,0.00017223,2]
[403028578,1769085597371,-5000.0,0.00017397,2]
[403028584,1769085604591,0.01,0.00017572,2]
[403028612,1769085709425,-5000.0,0.00017396,2]
[403028621,1769085741197,-5000.0,0.00017396,2]
[403028622,1769085750780,0.01,0.00017396,2]
[403028623,1769085750803,4999.99,0.00017396,2]
[403028627,1769085772796,5000.0,0.00017396,2]
[403028652,1769085794875,5000.0,0.00017396,2]
[403028664,1769085803562,0.01,0.00017396,2]
[403028665,1769085803586,4999.99,0.00017396,2]
[403028686,1769085820296,5000.0,0.00017396,2]
[403028688,1769085828111,0.02,0.00017396,2]
[403028689,1769085828132,4999.98,0.00017396,2]
[403028693,1769085831451,3500.0,0.00017,2]
[403028694,1769085844401,1500.03,0.00017396,2]
[403028695,1769085844423,3499.97,0.00017396,2]
[403028698,1769085851765,5000.0,0.00017396,2]
[403028699,1769085866991,1500.04,0.00017396,2]
[403028700,1769085867015,3499.96,0.00017396,2]
[403028701,1769085875388,5000.0,0.00017396,2]
[403028702,1769085890691,1500.05,0.00017396,2]
[403028703,1769085890713,3499.95,0.00017396,2]
[403028704,1769085898574,5000.0,0.00017396,2]
[403028705,1769085899515,166.12,0.00017214,2]
[403028711,1769085914038,1333.94,0.00017396,2]
[403028712,1769085914063,3666.06,0.00017396,2]
[403028713,1769085922336,5000.0,0.00017396,2]
[403028715,1769085937537,1333.95,0.00017396,2]
[403028716,1769085937559,3666.05,0.00017396,2]
[403028717,1769085942556,-200.0,0.00017572,2]
[403028718,1769085945431,4638.66918333,0.00017396,2]
[403028719,1769085957019,1695.29081667,0.00017263,2]
[403028720,1769085957045,10000.01,0.00017263,2]
[403028722,1769085961645,-5000.0,0.0001709,2]
[403028723,1769085964855,-300.0,0.00017262,2]
[403028724,1769085971297,-383.47530032,0.0001709,2]
[403028725,1769085985875,-339.87477843,0.00015617,2]
[403028726,1769085990104,-211.85000003,0.00015617,2]
[403028727,1769085992103,-305.01,0.00015617,2]
[403028728,1769085993672,-197.47750765,0.00015617,2]
[403028729,1769085997225,-167.2141737,0.00015617,2]
[403028731,1769085998931,-294.58817755,0.00015617,2]
[403028732,1769086003192,-378.79040727,0.00015617,2]
[403028733,1769086005283,-189.77695975,0.00015617,2]
[403028734,1769086009261,-157.60662868,0.00015617,2]
[403028737,1769086046067,-309.83665606,0.00015617,2]
[403028738,1769086049415,-210.25073015,0.00015617,2]
[403028739,1769086052689,-309.0923362,0.00015617,2]
[403028740,1769086055248,-165.18982704,0.00015617,2]
[403028741,1769086056799,-485.74659363,0.00015617,2]
[403028742,1769086065327,-1277.69522386,0.00015617,2]
[403028743,1769086065358,-316.71,0.00015823,2]
[403028744,1769086065386,-300.0,0.00017261,2]
[403028745,1769086065414,-357.5596048,0.00017262,2]
[403028746,1769086065442,-500.0,0.00017262,2]
[403028747,1769086065471,-435.03974822,0.00017262,2]
[403028748,1769086065498,-500.0,0.00017262,2]
[403028749,1769086065526,-500.0,0.00017262,2]
[403028750,1769086065555,-500.0,0.00017262,2]
[403028751,1769086065582,-126.00084624,0.00017262,2]
[403028752,1769086069235,-373.99915376,0.00017262,2]
[403028753,1769086069267,-500.0,0.00017262,2]
[403028754,1769086069296,-500.0,0.00017262,2]
[403028755,1769086069326,-500.0,0.00017262,2]
[403028756,1769086069356,-500.0,0.00017262,2]
[403028757,1769086069384,-471.65804012,0.00017262,2]
[403028758,1769086069414,-500.0,0.00017262,2]
[403028759,1769086069446,-500.0,0.00017262,2]
[403028760,1769086069474,-500.0,0.00017262,2]
[403028761,1769086069504,-500.0,0.00017262,2]
[403028762,1769086072312,-634.88082513,0.00017262,2]
[403028763,1769086072340,-500.0,0.00017262,2]
[403028764,1769086072370,-500.0,0.00017262,2]
[403028765,1769086072398,-500.0,0.00017262,2]
[403028766,1769086072426,-500.0,0.00017262,2]
[403028767,1769086072663,-500.0,0.00017262,2]
[403028768,1769086072693,-500.0,0.00017262,2]
[403028769,1769086072725,-500.0,0.00017262,2]
[403028770,1769086072755,-500.0,0.00017262,2]
[403028771,1769086072788,-230.24834974,0.00017262,2]
[403028772,1769086078379,-269.75165026,0.00017262,2]
[403028773,1769086078409,-500.0,0.00017262,2]
[403028774,1769086078439,-500.0,0.00017262,2]
[403028775,1769086078469,-500.0,0.00017262,2]
[403028776,1769086078498,-438.77957674,0.00017262,2]
[403028777,1769086081672,-1972.30298097,0.00017262,2]
[403028779,1769086084665,-3944.60596194,0.00017262,2]
[403028780,1769086088449,-2110.79807612,0.00017262,2]
[403028781,1769086088481,-633.41,0.00017262,2]
[403028782,1769086088511,-300.0,0.00017262,2]
[403028783,1769086119637,-9729.96556019,0.00017263,2]
[403028784,1769086125998,-10000.01,0.00017263,2]
[403028785,1769086132270,-10000.01,0.00017263,2]
[403028786,1769086138771,-394.12,0.00015821,2]
[403028787,1769086138802,-788.25,0.0001726,2]
[403028788,1769086138850,-7635.27,0.00017263,2]
[403028789,1769086138896,-10000.01,0.00017263,2]
[403028790,1769086142026,-10000.01,0.00017263,2]
[403028791,1769086151294,-240.0,0.00017262,2]
[403028792,1769086151327,-9520.01,0.00017263,2]
[403028831,1769086217853,571.5,0.00016079,2]
[403028864,1769086238579,-194.0,0.00017262,2]
[403028865,1769086238591,-300.0,0.00017262,2]
[403028866,1769086238601,-583.0,0.00017262,2]
[403028867,1769086238612,-17254.52356544,0.00017263,2]
[403028868,1769086238622,-5000.0,0.00017396,2]
[403028869,1769086238633,-1142.99,0.0001754,2]
[403028870,1769086238647,-1000.0,0.00017572,2]
[403028871,1769086238658,-469.1506036,0.00017572,2]
[403028872,1769086238675,-151.0,0.00017572,2]
[403028873,1769086238686,-157.8649598,0.00017572,2]
[403028874,1769086238697,-251.04675488,0.00017808,2]
[403028875,1769086238708,-475.0,0.00017985,2]
[403028876,1769086238723,-610.450739,0.000182,2]
[403028877,1769086238735,-250.29172336,0.00018209,2]
[403028878,1769086238746,-500.0,0.0001821,2]
[403028879,1769086238756,-500.0,0.0001821,2]
[403028880,1769086238767,-500.0,0.0001821,2]
[403028881,1769086238778,-500.0,0.0001821,2]
[403028882,1769086238792,-200.63351084,0.0001821,2]
[403028883,1769086238803,-500.0,0.0001821,2]
[403028884,1769086238814,-500.0,0.0001821,2]
[403028885,1769086238826,-500.0,0.0001821,2]
[403028886,1769086238837,-500.0,0.0001821,2]
[403028887,1769086238848,-67854.96816768,0.0001821,2]
[403028888,1769086238862,-3000.0,0.0001821,2]
[403028889,1769086238875,-3464.06302501,0.0001821,2]
[403028891,1769086240864,-3e-08,0.0001821,2]
[403029004,1769086298592,555.93,0.00015649,2]
[403029040,1769086378692,558.46,0.00015661,2]
[403029057,1769086406497,2002.0,0.000154,7]
[403029083,1769086458963,580.87,0.00015853,2]
[403029098,1769086494116,-5000.0,0.00016914,2]
[403029099,1769086500265,-1161.75,0.00017294,2]
[403029100,1769086500301,-570.5423139,0.00017395,2]
[403029101,1769086500339,-500.0,0.00017395,2]
[403029102,1769086500374,-326.53106408,0.00017395,2]
[403029103,1769086500407,-245.83628225,0.00017441,2]
[403029104,1769086500442,-471.37191219,0.00017838,2]
[403029105,1769086500477,-848.46944194,0.00017838,2]
[403029106,1769086500507,-242.61785227,0.00017838,2]
[403029112,1769086506586,-5000.0,0.00017121,2]
[403029113,1769086541856,665.32,0.00015654,2]
[403029119,1769086621925,656.85,0.00015867,2]
[403029121,1769086660381,-401.10992798,0.00016946,2]
[403029122,1769086663803,-261.10515284,0.00016946,2]
[403029123,1769086665659,-156.52863723,0.00016946,2]
[403029124,1769086667107,-228.99,0.00016946,2]
[403029125,1769086682816,-218.03854869,0.00016946,2]
[403029126,1769086682849,-1313.7,0.00017309,2]
[403029127,1769086682881,-1936.53290262,0.0001766,2]
[403029128,1769086689011,-3063.46709738,0.0001766,2]
[403029129,1769086689045,-548.00112479,0.00017877,7]
[403029130,1769086689074,-151.0,0.00018,2]
[403029132,1769086697554,2475.07355566,0.00018199,2]
[403029133,1769086702046,660.13,0.00015873,2]
[403029134,1769086724625,2135.57032005,0.00016239,2]
[403029135,1769086782502,664.81,0.00015831,2]
[403029136,1769086794091,-296.67570149,0.0001727,2]
[403029137,1769086797585,-176.54,0.0001727,2]
[403029146,1769086839946,-295.91,0.0001727,2]
[403029156,1769086862645,661.18,0.00015737,2]
[403029159,1769086900546,-243.31,0.00016996,2]
[403029162,1769086915001,-152.78356187,0.00016996,2]
[403029163,1769086943925,664.67,0.0001593,2]
[403029167,1769086972493,249.44411208,0.0001624,2]
[403029178,1769087023858,656.21,9.732e-05,2]
[403029179,1769087024284,1312.42,0.00010617,2]
[403029180,1769087024671,1968.63,0.00011502,2]
[403029181,1769087025076,2624.85,0.00012387,2]
[403029182,1769087025473,3281.06,0.00013272,2]
[403029183,1769087026205,156.84,0.00014156,2]
[403029184,1769087026231,3780.43,0.00014156,2]
[403029185,1769087026335,4593.48,0.00015041,2]
[403029186,1769087026726,1626.1,0.00015926,2]
[403029187,1769087026751,3623.59,0.00015926,2]
[403029188,1769087036661,-367.33934754,0.00016811,2]
[403029189,1769087039256,-289.37141011,0.00016811,2]
[403029190,1769087041692,-154.08858989,0.00016811,2]
[403029191,1769087044713,-201.04734207,0.00016811,2]
[403029192,1769087047853,-269.08,0.00016811,2]
[403029193,1769087090438,-209.82,0.00016643,2]